Workbook

Sheet Compare FY26 FY25 060325
A1: ATTACHMENT - 1
A2: COMMONWEALTH OF MASSACHUSETTS
A3: ALLOCATIONS FOR FISCAL YEAR 2026 AND ALLOCATIONS FOR FISCAL YEAR 2025 COMPARED FOR WIOA TITLE I ADULT, YOUTH, AND DISLOCATED WORKER
A6: MASSHIRE WORKFORCE AREAS | B6: WIOA TITLE I ADULT | F6: WIOA TITLE I DISLOCATED WORKER | J6: WIOA TITLE I YOUTH
B8: FY 2025 Allocation | C8: FY 2026 Allocation1 | D8: Change from FY 2025 | E8: % Change from FY 2025 | F8: FY 2025 Allocation | G8: FY 2026 Allocation1 | H8: Change from FY 2025 | I8: % Change from FY 2026 | J8: FY 2025 Allocation | K8: FY 2026 Allocation1 | L8: Change from FY 2025 | M8: % Change from FY 2025
A11: Berkshire County | B11: 339892 | C11: 273390 | D11: =C11-B11 -> -66502 | E11: =D11/B11 -> -0.1956562673 | F11: 351528 | G11: 299163 | H11: =G11-F11 -> -52365 | I11: =H11/F11 -> -0.1489639517 | J11: 414493 | K11: 324758 | L11: =K11-J11 -> -89735 | M11: =L11/J11 -> -0.2164934028
A12: Boston | B12: 1956903 | C12: 1732295 | D12: =C12-B12 -> -224608 | E12: -0.1147772782 | F12: 1092717 | G12: 1073340 | H12: =G12-F12 -> -19377 | I12: -0.01773286221 | J12: 2549210 | K12: 2220412 | L12: =K12-J12 -> -328798 | M12: -0.1289803508
A13: Bristol County | B13: 892122 | C13: 721997 | D13: -170125 | E13: -0.1906970123 | F13: 824602 | G13: 700192 | H13: -124410 | I13: -0.1508727847 | J13: 936861 | K13: 745794 | L13: -191067 | M13: -0.2039438081
A14: Brockton | B14: 741393 | C14: 680989 | D14: -60404 | E14: -0.08147365837 | F14: 577936 | G14: 494316 | H14: -83620 | I14: -0.144687301 | J14: 881127 | K14: 802647 | L14: -78480 | M14: -0.08906775073
A15: Cape Cod & Islands | B15: 819266 | C15: 721997 | D15: -97269 | E15: =D15/B15 -> -0.1187270069 | F15: 582703 | G15: 562941 | H15: -19762 | I15: -0.03391436118 | J15: 895199 | K15: 797306 | L15: -97893 | M15: -0.1093533393
A16: Central Mass | B16: 940238 | C16: 914612 | D16: -25626 | E16: -0.02725480144 | F16: 960447 | G16: 810635 | H16: -149812 | I16: -0.1559815378 | J16: 1077858 | K16: 1036983 | L16: -40875 | M16: -0.03792243505
A17: Franklin/Hampshire | B17: 390768 | C17: 319369 | D17: -71399 | E17: -0.1827145519 | F17: 370594 | G17: 331331 | H17: -39263 | I17: -0.1059461297 | J17: 753746 | K17: 610344 | L17: -143402 | M17: -0.1902524192
A18: Greater Lowell | B18: 443196 | C18: 369076 | D18: -74120 | E18: -0.1672397765 | F18: 614877 | G18: 537207 | H18: -77670 | I18: -0.1263179465 | J18: 479406 | K18: 399481 | L18: -79925 | M18: -0.1667167286
A19: Gtr New Bedford | B19: 659478 | C19: 513227 | D19: -146251 | E19: -0.2217678224 | F19: 598194 | G19: 499677 | H19: -98517 | I19: -0.1646907191 | J19: 734542 | K19: 576230 | L19: -158312 | M19: -0.215524776
A20: Hampden County | B20: 1710220 | C20: 1548378 | D20: -161842 | E20: -0.09463226953 | F20: 898482 | G20: 748444 | H20: -150038 | I20: -0.1669905463 | J20: 1924988 | K20: 1672882 | L20: -252106 | M20: -0.1309649722
A21: Merrimack Valley | B21: 1131909 | C21: 1046336 | D21: -85573 | E21: -0.0756006004 | F21: 722123 | G21: 632639 | H21: -89484 | I21: -0.1239179475 | J21: 1247150 | K21: 1150515 | L21: -96635 | M21: -0.07748466504
A22: Metro North | B22: 904340 | C22: 1052550 | D22: 148210 | E22: 0.1638874759 | F22: 1116549 | G22: 1043318 | H22: -73231 | I22: -0.0655869111 | J22: 1005465 | K22: 1253817 | L22: 248352 | M22: 0.2470021333
A23: Metro South/West | B23: 856017 | C23: 726968 | D23: -129049 | E23: -0.1507551836 | F23: 1180896 | G23: 1120520 | H23: -60376 | I23: -0.05112727962 | J23: 1092337 | K23: 926853 | L23: -165484 | M23: -0.1514953718
A24: North Central | B24: 501487 | C24: 428725 | D24: -72762 | E24: -0.1450924949 | F24: 501673 | G24: 466437 | H24: -35236 | I24: -0.07023698704 | J24: 494356 | K24: 421036 | L24: -73320 | M24: -0.1483141704
A25: North Shore | B25: 707661 | C25: 672290 | D25: -35371 | E25: -0.04998297207 | F25: 679224 | G25: 629422 | H25: -49802 | I25: -0.07332190853 | J25: 770588 | K25: 705087 | L25: -65501 | M25: -0.08500132366
A26: South Shore | B26: 811835 | C26: 704600 | D26: -107235 | E26: -0.1320896488 | F26: 843668 | G26: 773106 | H26: -70562 | I26: -0.08363716533 | J26: 830112 | K26: 725676 | L26: -104436 | M26: -0.1258095293
A27: TOTAL | B27: 13806725 | C27: 12426799 | D27: -1379926 | E27: -0.09994593215 | F27: 11916213 | G27: 10722688 | H27: =G27-F27 -> -1193525 | I27: =H27/F27 -> -0.1001597571 | J27: 16087438 | K27: 14369821 | L27: -1717617 | M27: -0.106767591
A30: FY 2026 Total allotment for workforce areas assumes Governor's Reserve for statewide activities at 15% for the period 7/1/25 - 6/30/26.
A31: 1. FY 2026 state program allotments published in Training and Employment Guidance Letter (TEGL) 11-24-23, May 20,2025
A33: MassHire Department of Career Services | K33: Date: | L33: 2025-06-03

Sheet Adult FY26 060325
A1: ATTACHMENT - 2
A2: COMMONWEALTH OF MASSACHUSETTS
A3: FISCAL YEAR 2026 WIOA TITLE I FORMULA ALLOCATION SHARES FOR ADULT ACTIVITIES WITH HOLD HARMLESS ADJUSTMENT
A5: MASSHIRE WORKFORCE AREAS | B5: A | D5: B | F5: C | H5: D | I5: E | M5: F | N5: G | O5: H | P5: I
B6: 1/3 Weight | D6: 1/3 Weight | F6: 1/3 Weight | H6: Unadjusted | I6: Hold Harmless Level FY26 | M6: Adjusted | N6: Fiscal Year 2026
B7: Disadvantaged Adults* | D7: Unemployed in ASUs | F7: Excess Unemployed in ASUs | H7: Formula | I7: Hold-Harmless Level = 90% of | M7: Formula | N7: Total | O7: Program 90% | P7: Admin 10%
H8: (A+B+C)/3 | I8: Avg Adult Share (Prior 2 Years) | M8: Share** | N8: Allocation | O8: Amount | P8: Amount
B9: Count | C9: Pct | D9: Count | E9: Pct | F9: Count | G9: Pct | H9: Unadj Share | I9: FY24 | J9: FY25 | K9: Average | L9: 90%HH | M9: FY26 | N9: FY26 | O9: FY26 | P9: FY26
A10: Berkshire County | B10: 9020 | C10: =+B10/460507 -> 0.01958710725 | D10: 465 | E10: =+D10/45435 -> 0.01023440079 | F10: 163 | G10: =+F10/14817 -> 0.01100087737 | H10: =+(C10+E10+G10)/3 -> 0.01360746181 | I10: 0.0243 | J10: 0.02461781646 | K10: =+(I10+J10)/2 -> 0.02445890823 | L10: =ROUND(K10*0.9,4) -> 0.022 | M10: 0.022 | N10: =ROUND(M10*$N$26,0) -> 273390 | O10: =ROUND(N10*0.9,0) -> 246051 | P10: =(N10-O10) -> 27339
A11: Boston | B11: 70920 | C11: =+B11/460507 -> 0.1540041737 | D11: 6424 | E11: =+D11/45435 -> 0.1413887972 | F11: 2020 | G11: =+F11/14817 -> 0.1363298913 | H11: =+(C11+E11+G11)/3 -> 0.1439076207 | I11: 0.1294 | J11: 0.1417355256 | K11: 0.1355677628 | L11: =ROUND(K11*0.9,4) -> 0.122 | M11: 0.1394 | N11: =ROUND(M11*$N$26,0)-1 -> 1732295 | O11: =ROUND(N11*0.9,0) -> 1559066 | P11: =N11-O11 -> 173229
A12: Bristol County | B12: 25014 | C12: 0.05431839255 | D12: 2239 | E12: 0.04927919005 | F12: 835 | G12: 0.05635418776 | H12: 0.05331725679 | I12: 0.0644 | J12: 0.06461503247 | K12: 0.06450751623 | L12: 0.0581 | M12: 0.0581 | N12: =ROUND(M12*$N$26,0) -> 721997 | O12: =ROUND(N12*0.9,0) -> 649797 | P12: 72200
A13: Brockton | B13: 15530 | C13: 0.03372370018 | D13: 3188 | E13: 0.07016617145 | F13: 1051 | G13: 0.07093203752 | H13: 0.05827396972 | I13: 0.0496 | J13: 0.05369796215 | K13: 0.05164898108 | L13: 0.0465 | M13: 0.0548 | N13: 680989 | O13: =ROUND(N13*0.9,0) -> 612890 | P13: 68099
A14: Cape Cod & Islands | B14: 11780 | C14: 0.02558050149 | D14: 3570 | E14: 0.07857378673 | F14: 1357 | G14: 0.09158399136 | H14: 0.06524609319 | I14: 0.0435 | J14: 0.05933818082 | K14: 0.05141909041 | L14: 0.0463 | M14: 0.0581 | N14: 721997 | O14: 649797 | P14: 72200
A15: Central Mass | B15: 42118 | C15: 0.09146006467 | D15: 3071 | E15: 0.06759106416 | F15: 975 | G15: 0.06580279409 | H15: 0.07495130764 | I15: 0.0773 | J15: 0.0681 | K15: 0.0727 | L15: 0.0654 | M15: 0.0736 | N15: 914612 | O15: 823151 | P15: 91461
A16: Franklin/Hampshire | B16: 16425 | C16: 0.03566721027 | D16: 792 | E16: 0.01743149554 | F16: 247 | G16: 0.01667004117 | H16: 0.02325624899 | I16: 0.0288 | J16: 0.0283026791 | K16: 0.02855133955 | L16: 0.0257 | M16: 0.0257 | N16: 319369 | O16: 287432 | P16: 31937
A17: Greater Lowell | B17: 19253 | C17: 0.04180826784 | D17: 575 | E17: 0.01265544184 | F17: 185 | G17: 0.01248565837 | H17: 0.02231645602 | I17: 0.034 | J17: 0.0321 | K17: 0.03305 | L17: 0.0297 | M17: 0.0297 | N17: 369076 | O17: 332168 | P17: 36908
A18: Gtr New Bedford | B18: 18017 | C18: 0.03912426956 | D18: 1865 | E18: 0.04104765049 | F18: 621 | G18: 0.04191131808 | H18: 0.04069441271 | I18: 0.0441 | J18: 0.04776498718 | K18: 0.04593249359 | L18: 0.0413 | M18: 0.0413 | N18: 513227 | O18: 461904 | P18: 51323
A19: Hampden County | B19: 46011 | C19: 0.09991379067 | D19: 6310 | E19: 0.1388797183 | F19: 2014 | G19: 0.1359249511 | H19: 0.1249061533 | I19: 0.1257 | J19: 0.1238686421 | K19: 0.1247843211 | L19: 0.1123 | M19: 0.1246 | N19: =ROUND(M19*$N$26,0)-1 -> 1548378 | O19: =ROUND(N19*0.9,0) -> 1393540 | P19: 154838
A20: Merrimack Valley | B20: 26402 | C20: 0.05733246183 | D20: 5031 | E20: 0.1107296137 | F20: 1541 | G20: 0.1040021597 | H20: 0.09068807842 | I20: 0.0745 | J20: 0.08198243661 | K20: 0.07824121831 | L20: 0.0704 | M20: 0.0842 | N20: 1046336 | O20: 941702 | P20: 104634
A21: Metro North | B21: 49290 | C21: 0.1070342036 | D21: 4604 | E21: 0.1013315726 | F21: 1428 | G21: 0.09637578457 | H21: 0.1015805203 | I21: 0.0719 | J21: 0.0655 | K21: 0.0687 | L21: 0.0618 | M21: 0.0847 | N21: 1052550 | O21: 947295 | P21: 105255
A22: Metro South/West | B22: 36546 | C22: 0.07936035717 | D22: 1181 | E22: 0.02599317707 | F22: 426 | G22: 0.02875075926 | H22: 0.04470143117 | I22: 0.0679 | J22: 0.062 | K22: 0.06495 | L22: 0.0585 | M22: 0.0585 | N22: 726968 | O22: 654271 | P22: 72697
A23: North Central | B23: 19568 | C23: 0.04249229653 | D23: 1391 | E23: 0.03061516452 | F23: 451 | G23: 0.03043801039 | H23: 0.03451515715 | I23: 0.0403 | J23: 0.03632194897 | K23: 0.03831097449 | L23: 0.0345 | M23: 0.0345 | N23: 428725 | O23: 385853 | P23: 42872
A24: North Shore | B24: 28614 | C24: 0.0621358633 | D24: 2356 | E24: 0.05185429735 | F24: 722 | G24: 0.04872781265 | H24: 0.05423932443 | I24: 0.057 | J24: 0.05125478848 | K24: 0.05412739424 | L24: 0.0487 | M24: 0.0541 | N24: 672290 | O24: 605061 | P24: 67229
A25: South Shore | B25: 25999 | C25: 0.05645733941 | D25: 2373 | E25: 0.05222845824 | F25: 781 | G25: 0.05270972532 | H25: 0.05379850765 | I25: 0.0673 | J25: 0.0588 | K25: 0.06305 | L25: 0.0567 | M25: 0.0567 | N25: 704600 | O25: =ROUND(N25*0.9,0) -> 634140 | P25: 70460
A26: TOTAL | B26: =SUM(B10:B25) -> 460507 | C26: 1 | D26: =SUM(D10:D25) -> 45435 | E26: =SUM(E10:E25) -> 1 | F26: =SUM(F10:F25) -> 14817 | G26: =SUM(G10:G25) -> 1 | H26: 1 | I26: 1 | J26: 1 | K26: =SUM(K10:K25) -> 1 | L26: =SUM(L10:L25) -> 0.8999 | M26: 0.9999848429 | N26: 12426799 | O26: =SUM(O10:O25) -> 11184118 | P26: =SUM(P10:P25) -> 1242681
N27: =SUM(N10:N26) -> 24853598 | O27: =SUM(O10:O26) -> 22368236 | P27: =SUM(P9:P24) -> 1172221
N28: =SUM(N10:N25) -> 12426799 | O28: =SUM(O10:O25) -> 11184118 | P28: 1242681
A29: Data on ASU unemployed and ASU excess unemployment data are for the 7/1/23 - 6/30/24 benchmark period used for state ASU determination for FY26.
A30: * Economically Disadvantaged Adult source: special tabulations of American Community Survey (ACS) from Census Bureau based on data collected 1/1/2016-12/31/20. ETA Reference TEGL 01-23, 7/31/2023.
A31: **Unadjusted formula shares (D) were adjusted to ensure that each area's formula share was at or above the area's 90% hold-harmless level (E). Totals may not add due to rounding.
A32: FY 2026 total allotment for workforce areas assumes Governor's Reserve for statewide activities at 15% for the period 7/1/25 - 6/30/26.
A33: FY 2026 Initial state program allotments published in Training and Employment Guidance Letter (TEGL) 11-24, May 20, 2025.
A35: Prepared by: MassHire Department of Career Services | O35: Date | P35: 2025-06-03

Sheet Youth FY26 060325
A1: ATTACHMENT - 3
A2: COMMONWEALTH OF MASSACHUSETTS
A3: FISCAL YEAR 2026 WIOA TITLE I FORMULA ALLOCATION SHARES FOR YOUTH ACTIVITIES WITH HOLD HARMLESS ADJUSTMENT
A6: MASSHIRE WORKFORCE AREAS | B6: A | D6: B | F6: C | H6: D | I6: E | M6: F | N6: G | O6: H | P6: I
B7: 1/3 Weight | D7: 1/3 Weight | F7: 1/3 Weight | H7: Unadjusted | I7: Hold Harmless Level FY26 | M7: Adjusted | N7: Fiscal Year 2026
B8: Disadvantaged Youth* | D8: Unemployed in ASUs | F8: Excess Unemployed in ASUs | H8: Formula | I8: Hold-Harmless Level = 90% of | M8: Formula | N8: Total | O8: Program 90% | P8: Admin 10%
H9: (A+B+C)/3 | I9: Avg Youth Share (Prior 2 Years) | M9: Share** | N9: Allocation | O9: Amount | P9: Amount
B10: Count | C10: Pct | D10: Count | E10: Pct | F10: Count | G10: Pct | H10: Unadj Share | I10: FY24 | J10: FY25 | K10: Average | L10: 90%HH | M10: FY26 | N10: FY26 | O10: FY26 | P10: FY26
A11: Berkshire County | B11: 2982 | C11: =+B11/122769 -> 0.02428951934 | D11: 465 | E11: =+D11/45435 -> 0.01023440079 | F11: 163 | G11: =+F11/14817 -> 0.01100087737 | H11: =+(C11+E11+G11)/3 -> 0.0151749325 | I11: 0.0244 | J11: 0.0257650107 | K11: =+(I11+J11)/2 -> 0.02508250535 | L11: =ROUND(K11*0.9,4) -> 0.0226 | M11: 0.0226 | N11: =ROUND(M11*$N$27,0) -> 324758 | O11: =ROUND(N11*0.9,0)+1 -> 292283 | P11: =N11-O11 -> 32475
A12: Boston | B12: 25310 | C12: =+B12/122769 -> 0.2061595354 | D12: 6424 | E12: =+D12/45435 -> 0.1413887972 | F12: 2020 | G12: =+F12/$F$27 -> 0.1363298913 | H12: =+(C12+E12+G12)/3 -> 0.1612927413 | I12: 0.1452 | J12: 0.1584596869 | K12: 0.1518298435 | L12: =ROUND(K12*0.9,4) -> 0.1366 | M12: 0.1545191874 | N12: =ROUND(M12*$N$27,0)-1 -> 2220412 | O12: =ROUND(N12*0.9,0) -> 1998371 | P12: =(N12-O12) -> 222041
A13: Bristol County | B13: 4075 | C13: 0.03319241828 | D13: 2239 | E13: 0.04927919005 | F13: 835 | G13: =+F13/$F$27 -> 0.05635418776 | H13: 0.04627526536 | I13: 0.0571 | J13: 0.05823556429 | K13: 0.05766778214 | L13: 0.0519 | M13: 0.0519 | N13: =ROUND(M13*$N$27,0) -> 745794 | O13: =ROUND(N13*0.9,0) -> 671215 | P13: =N13-O13 -> 74579
A14: Brockton | B14: 4455 | C14: 0.03628766219 | D14: 3188 | E14: 0.07016617145 | F14: 1051 | G14: =+F14/$F$27 -> 0.07093203752 | H14: 0.05912862372 | I14: 0.0501 | J14: 0.05477112203 | K14: 0.05243556101 | L14: 0.0472 | M14: 0.05585644042 | N14: 802647 | O14: 722382 | P14: 80265
A15: Cape Cod & Islands | B15: 1367 | C15: 0.01113473271 | D15: 3570 | E15: 0.07857378673 | F15: 1357 | G15: =+F15/$F$27 -> 0.09158399136 | H15: 0.06043083693 | I15: 0.0386 | J15: 0.05564583886 | K15: 0.04712291943 | L15: 0.0424 | M15: 0.05548473377 | N15: =ROUND(M15*$N$27,0) -> 797306 | O15: 717575 | P15: =(N15-O15) -> 79731
A16: Central Mass | B16: 11241 | C16: 0.09156220218 | D16: 3071 | E16: 0.06759106416 | F16: 975 | G16: 0.06580279409 | H16: 0.07498535348 | I16: 0.0768 | J16: 0.067 | K16: 0.0719 | L16: 0.0647 | M16: 0.07216394149 | N16: 1036983 | O16: 933285 | P16: 103698
A17: Franklin/Hampshire | B17: 11495 | C17: 0.09363112838 | D17: 792 | E17: 0.01743149554 | F17: 247 | G17: 0.01667004117 | H17: 0.04257755503 | I17: 0.047 | J17: 0.04685306537 | K17: 0.04692653268 | L17: 0.0422 | M17: 0.04247398656 | N17: 610344 | O17: 549310 | P17: 61034
A18: Greater Lowell | B18: 4559 | C18: 0.03713478158 | D18: 575 | E18: 0.01265544184 | F18: 185 | G18: 0.01248565837 | H18: 0.02075862726 | I18: 0.0319 | J18: 0.0298 | K18: 0.03085 | L18: 0.0278 | M18: 0.0278 | N18: 399481 | O18: 359533 | P18: 39948
A19: Gtr New Bedford | B19: 3670 | C19: 0.0298935399 | D19: 1865 | E19: 0.04104765049 | F19: 621 | G19: 0.04191131808 | H19: 0.03761750282 | I19: 0.0434 | J19: 0.04565932825 | K19: 0.04452966412 | L19: 0.0401 | M19: 0.0401 | N19: 576230 | O19: 518607 | P19: 57623
A20: Hampden County | B20: 9991 | C20: 0.08138047879 | D20: 6310 | E20: 0.1388797183 | F20: 2014 | G20: 0.1359249511 | H20: 0.1187283827 | I20: 0.1254 | J20: 0.1196578646 | K20: 0.1225289323 | L20: 0.1103 | M20: 0.116416363 | N20: =ROUND(M20*$N$27,0) -> 1672882 | O20: 1505594 | P20: =(N20-O20) -> 167288
A21: Merrimack Valley | B21: 5098 | C21: 0.04152514071 | D21: 5031 | E21: 0.1107296137 | F21: 1541 | G21: 0.1040021597 | H21: 0.08541897138 | I21: 0.0689 | J21: 0.07752319359 | K21: 0.0732115968 | L21: 0.0659 | M21: 0.08006465274 | N21: 1150515 | O21: 1035464 | P21: =(N21-O21) -> 115051
A22: Metro North | B22: 11839 | C22: 0.09643313866 | D22: 4604 | E22: 0.1013315726 | F22: 1428 | G22: 0.09637578457 | H22: 0.09804683194 | I22: 0.0679 | J22: 0.0625 | K22: 0.0652 | L22: 0.0587 | M22: 0.08725346218 | N22: 1253817 | O22: 1128435 | P22: 125382
A23: Metro South/West | B23: 12789 | C23: 0.1041712484 | D23: 1181 | E23: 0.02599317707 | F23: 426 | G23: 0.02875075926 | H23: 0.05297172826 | I23: 0.0754 | J23: 0.0679 | K23: 0.07165 | L23: 0.0645 | M23: 0.0645 | N23: 926853 | O23: 834168 | P23: 92685
A24: North Central | B24: 3075 | C24: 0.02504703956 | D24: 1391 | E24: 0.03061516452 | F24: 451 | G24: 0.03043801039 | H24: 0.02870007149 | I24: 0.0343 | J24: 0.03072932541 | K24: 0.0325146627 | L24: 0.0293 | M24: 0.0293 | N24: 421036 | O24: 378932 | P24: 42104
A25: North Shore | B25: 6234 | C25: 0.05077829094 | D25: 2356 | E25: 0.05185429735 | F25: 722 | G25: 0.04872781265 | H25: 0.05045346698 | I25: 0.0529 | J25: 0.0479 | K25: 0.0504 | L25: 0.0454 | M25: 0.04906723243 | N25: 705087 | O25: 634578 | P25: 70509
A26: South Shore | B26: 4589 | C26: 0.03737914294 | D26: 2373 | E26: 0.05222845824 | F26: 781 | G26: 0.05270972532 | H26: 0.04743910883 | I26: 0.0607 | J26: 0.0516 | K26: 0.05615 | L26: 0.0505 | M26: 0.0505 | N26: =ROUND(M26*$N$27,0) -> 725676 | O26: 653108 | P26: =(N26-O26) -> 72568
A27: TOTAL | B27: =SUM(B11:B26) -> 122769 | C27: 1 | D27: 30618 | E27: 1 | F27: 14817 | G27: 1 | H27: 1 | I27: 1 | J27: 1 | K27: =SUM(K11:K26) -> 1 | L27: =SUM(L11:L26) -> 0.9001 | M27: 1 | N27: 14369821 | O27: =SUM(O11:O26) -> 12932840 | P27: =(N27-O27) -> 1436981
M28: =SUM(M11:M27) -> 2 | N28: =SUM(N11:N26) -> 14369821 | O28: =SUM(O11:O27) -> 25865680 | P28: =SUM(P11:P27) -> 2873962
N29: =SUM(N11:N26) -> 14369821 | O29: =SUM(O11:O26) -> 12932840 | P29: 1436981
A30: Data on ASU unemployed and ASU excess unemployment data are for the 7/1/23 - 6/30/24 benchmark period used for state ASU determination for FY26.
A31: * Economically Disadvantaged Adult source: special tabulations of American Community Survey (ACS) from Census Bureau based on data collected 1/1/2016-12/31/20. ETA Reference TEGL 01-23, 7/31/2023.
A32: **Unadjusted formula shares (D) were adjusted to ensure that each area's formula share was at or above the area's 90% hold-harmless level (E). Totals may not add due to rounding.
A33: FY 2026 total allotment for workforce areas assumes Governor's Reserve for statewide activities at 15% for the period 7/1/25 - 6/30/26.
A34: FY 2026 Initial state program allotments published in Training and Employment Guidance Letter (TEGL) 11-24, May 20, 2025.
A36: Prepared by: MassHire Department of Career Services | O36: Date: | P36: 2025-06-03

Sheet Dis Wrk FY26 060325
A1: ATTACHMENT - 4 | P1: ATTACHMENT - 4
A2: COMMONWEALTH OF MASSACHUSETTS | P2: COMMONWEALTH OF MASSACHUSETTS
A3: FISCAL YEAR 2026 WIOA TITLE I FORMULA ALLOCATION SHARES FOR DISLOCATED WORKERS WITH HOLD HARMLESS ADJUSTMENT | P3: FISCAL YEAR 2026 WIOA TITLE I FORMULA ALLOCATION SHARES FOR DISLOCATED WORKERS WITH HOLD HARMLESS ADJUSTMENT
A6: MASSHIRE WORKFORCE AREAS | B6: A | D6: B | F6: C | H6: C | J6: D | L6: E | N6: F | O6: G | P6: H | Q6: I | R6: J | V6: K | W6: L | X6: M | Y6: N
B7: 27.78% Weight | D7: 27.78% Weight | F7: 0% Weight | H7: 11.10% Weight | J7: 16.67% Weight | L7: 16.67% Weight | N7: Weighted | O7: Calculated | P7: Adjusted | Q7: Fiscal Year 2026 | R7: Hold Harmless Level Fiscal Year 2026 | V7: Adjusted | W7: Fiscal Year 2026
B8: CY24 Average Monthly UI Claimants | D8: CY24 Annual Avg Unemp. Rate | F8: CY23 Claimants in Mass Layoffs | H8: 3-Year Job Loss in Declining Indus. | J8: CY24 Avg Lng Trm UI Claims (26+Wks) | L8: CY24 Annual Total of UI Exhaustees | N8: Formula Share | O8: Hold | P8: Formula | Q8: Total Allocation | R8: Hold-Harmless Level = 90% of | V8: Formula | W8: Total Allocation | X8: Program 90% Amount | Y8: Admin. 10% Amount
O9: Harmless | P9: Share* | R9: Avg Dislocated Worker Share (Prior 2 Years) | V9: Share
B10: Count | C10: Pct | D10: Count | E10: Pct | F10: Count | G10: Pct | H10: Count | I10: Pct | J10: Count | K10: Pct | L10: Count | M10: Pct | N10: FY26 | O10: FY26 | P10: FY26 | Q10: FY25 | R10: FY24 | S10: FY25 | T10: Average | U10: 90% HH | V10: FY26 | W10: FY26 | X10: FY26 | Y10: FY26
A11: Berkshire County | B11: 915 | C11: =+B11/B27 -> 0.01451850912 | D11: 4 | E11: =+D11/$D$27 -> 0.05961251863 | F11: Data not available for this factor. Factor weight (10%) was apportioned across the five remaining factors. | H11: 1534 | I11: =+H11/H27 -> 0.007254189838 | J11: 515 | K11: =+J11/J27 -> 0.01127778386 | L11: 836 | M11: =+L11/L27 -> 0.01415389825 | N11: =ROUND(C11*0.2778+E11*0.2778+I11*0.1111+K11*0.1667+M11*0.1667,4) -> 0.0256 | O11: 0.0279 | P11: 0.0279 | Q11: =ROUND(P11*$W$27,0) -> 299163 | R11: 0.0326 | S11: 0.0295 | T11: =+(R11+S11)/2 -> 0.03105 | U11: =ROUND(T11*0.9,4) -> 0.0279 | V11: 0.0279 | W11: =ROUND(V11*$W$27,0) -> 299163 | X11: =ROUND(W11*0.9,0) -> 269247 | Y11: =(W11-X11) -> 29916
A12: Boston | B12: 5901 | C12: =+B12/B27 -> 0.09363248338 | D12: 3.9 | E12: =+D12/$D$27 -> 0.05812220566 | H12: 46824 | I12: =+H12/H27 -> 0.2214277608 | J12: 4684 | K12: =+J12/J27 -> 0.1025730866 | L12: 6002 | M12: =+L12/L27 -> 0.1016168628 | N12: =ROUND(C12*0.2778+E12*0.2778+I12*0.1111+K12*0.1667+M12*0.1667,4) -> 0.1008 | O12: 0.0824 | P12: 0.1001 | Q12: =ROUND(P12*$W$27,0) -> 1073341 | R12: 0.0915 | S12: 0.0917 | T12: =+(R12+S12)/2 -> 0.0916 | U12: =ROUND(T12*0.9,4) -> 0.0824 | V12: 0.1001 | W12: =ROUND(V12*$W$27,0)-1 -> 1073340 | X12: =ROUND(W12*0.9,0) -> 966006 | Y12: =(W12-X12) -> 107334
A13: Bristol County | B13: 5506 | C13: =+B13/B27 -> 0.08736493026 | D13: 4.4 | E13: =+D13/$D$27 -> 0.06557377049 | H13: 8173 | I13: =+H13/H27 -> 0.03864960466 | J13: 2490 | K13: =+J13/J27 -> 0.0545275375 | L13: 3365 | M13: =+L13/L27 -> 0.0569711335 | N13: 0.0654 | O13: 0.0625 | P13: 0.0653 | Q13: =ROUND(P13*$W$27,0) -> 700192 | R13: 0.0696 | S13: 0.0692 | T13: 0.0694 | U13: 0.0625 | V13: 0.0653 | W13: =ROUND(V13*$W$27,0) -> 700192 | X13: =ROUND(W13*0.9,0) -> 630173 | Y13: =W13-X13 -> 70019
A14: Brockton | B14: 2538 | C14: =+B14/B27 -> 0.04027101217 | D14: 4.4 | E14: =+D14/$D$27 -> 0.06557377049 | H14: 4334 | I14: =+H14/H27 -> 0.02049521432 | J14: 2001 | K14: =+J14/J27 -> 0.04381911749 | L14: 2563 | M14: =+L14/L27 -> 0.04339287226 | N14: 0.0462 | O14: 0.0434 | P14: 0.0461 | Q14: 494316 | R14: 0.0479 | S14: 0.0485 | T14: 0.0482 | U14: 0.0434 | V14: 0.0461 | W14: 494316 | X14: 444884 | Y14: 49432
A15: Cape Cod & Islands | B15: 2923 | C15: =+B15/B27 -> 0.04637989305 | D15: 4.9 | E15: 0.07302533532 | H15: 13521 | I15: =+H15/H27 -> 0.06393996141 | J15: 1296 | K15: =+J15/J27 -> 0.02838059783 | L15: 2722 | M15: =+L15/L27 -> 0.04608482181 | N15: 0.0527 | O15: 0.0469 | P15: 0.0525 | Q15: 562941 | R15: 0.0554 | S15: 0.0489 | T15: 0.05215 | U15: 0.0469 | V15: 0.0525 | W15: 562941 | X15: 506647 | Y15: 56294
A16: Central Mass | B16: 5541 | C16: =+B16/B27 -> 0.08792028307 | D16: 4 | E16: 0.05961251863 | H16: 12296 | I16: =+H16/H27 -> 0.0581470132 | J16: 3896 | K16: =+J16/J27 -> 0.08531698237 | L16: 4985 | M16: =+L16/L27 -> 0.08439854398 | N16: 0.0757 | O16: 0.0719 | P16: 0.0756 | Q16: 810635 | R16: 0.0792 | S16: 0.0806 | T16: 0.0799 | U16: 0.0719 | V16: 0.0756 | W16: 810635 | X16: 729572 | Y16: 81063
A17: Franklin/Hampshire | B17: 1528 | C17: =+B17/B27 -> 0.02424511686 | D17: 3.8 | E17: 0.0566318927 | H17: 2227 | I17: =+H17/H27 -> 0.0105313434 | J17: 995 | K17: =+J17/J27 -> 0.02178911639 | L17: 1320 | M17: =+L17/L27 -> 0.02234826039 | N17: 0.031 | O17: 0.0294 | P17: 0.0309 | Q17: 331331 | R17: 0.0343 | S17: 0.0311 | T17: 0.0327 | U17: 0.0294 | V17: 0.0309 | W17: 331331 | X17: =ROUND(W17*0.9,0) -> 298198 | Y17: 33133
A18: Greater Lowell | B18: 3282 | C18: =+B18/B27 -> 0.05207622614 | D18: 4.1 | E18: 0.06110283159 | H18: 4758 | I18: =+H18/H27 -> 0.02250028374 | J18: 2297 | K18: =+J18/J27 -> 0.05030110588 | L18: 2829 | M18: =+L18/L27 -> 0.04789638534 | N18: 0.0503 | O18: 0.0442 | P18: 0.0501 | Q18: 537207 | R18: 0.0467 | S18: 0.0516 | T18: 0.04915 | U18: 0.0442 | V18: 0.0501 | W18: 537207 | X18: 483486 | Y18: 53721
A19: Gtr New Bedford | B19: 2452 | C19: =+B19/B27 -> 0.03890643099 | D19: 5.1 | E19: 0.07600596125 | H19: 3275 | I19: =+H19/H27 -> 0.0154872697 | J19: 1632 | K19: =+J19/J27 -> 0.0357385306 | L19: 2300 | M19: =+L19/L27 -> 0.03894015068 | N19: 0.0461 | O19: 0.0466 | P19: 0.0466 | Q19: 499677 | R19: 0.0534 | S19: 0.0502 | T19: 0.0518 | U19: 0.0466 | V19: 0.0466 | W19: 499677 | X19: 449709 | Y19: 49968
A20: Hampden County | B20: 4428 | C20: =+B20/B27 -> 0.07026006379 | D20: 5.1 | E20: 0.07600596125 | H20: 7914 | I20: =+H20/H27 -> 0.0374248099 | J20: 3260 | K20: =+J20/J27 -> 0.07138946677 | L20: 4334 | M20: =+L20/L27 -> 0.07337678828 | N20: 0.0689 | O20: 0.0698 | P20: 0.0698 | Q20: 748444 | R20: 0.0798 | S20: 0.0754 | T20: 0.0776 | U20: 0.0698 | V20: 0.0698 | W20: 748444 | X20: 673600 | Y20: 74844
A21: Merrimack Valley | B21: 4008 | C21: =+B21/B27 -> 0.06359583009 | D21: 4.3 | E21: 0.06408345753 | H21: 7343 | I21: =+H21/H27 -> 0.03472458669 | J21: 2729 | K21: =+J21/J27 -> 0.05976130516 | L21: 3501 | M21: =+L21/L27 -> 0.05927368154 | N21: 0.0592 | O21: 0.0534 | P21: 0.059 | Q21: 632639 | R21: 0.0581 | S21: 0.0606 | T21: 0.05935 | U21: 0.0534 | V21: 0.059 | W21: 632639 | X21: 569375 | Y21: 63264
A22: Metro North | B22: 6412 | C22: =+B22/B27 -> 0.1017406344 | D22: 3.5 | E22: 0.0521609538 | H22: 31680 | I22: =+H22/H27 -> 0.1498127341 | J22: 5414 | K22: =+J22/J27 -> 0.1185590715 | L22: 6594 | M22: =+L22/L27 -> 0.111639719 | N22: 0.0978 | O22: 0.0833 | P22: 0.0973 | Q22: 1043318 | R22: 0.0913 | S22: 0.0937 | T22: 0.0925 | U22: 0.0833 | V22: 0.0973 | W22: 1043318 | X22: 938986 | Y22: 104332
A23: Metro South/West | B23: 6568 | C23: =+B23/B27 -> 0.1042159212 | D23: 3.5 | E23: 0.0521609538 | H23: 39467 | I23: =+H23/H27 -> 0.1866369689 | J23: 5938 | K23: =+J23/J27 -> 0.1300339428 | L23: 6885 | M23: =+L23/L27 -> 0.1165664945 | N23: 0.1053 | O23: 0.0833 | P23: 0.1045 | Q23: 1120521 | R23: 0.086 | S23: 0.0991 | T23: 0.09255 | U23: 0.0833 | V23: 0.1045 | W23: =ROUND(V23*$W$27,0)-1 -> 1120520 | X23: 1008468 | Y23: =(W23-X23) -> 112052
A24: North Central | B24: 2506 | C24: =+B24/B27 -> 0.03976326103 | D24: 4.3 | E24: 0.06408345753 | H24: 3694 | I24: =+H24/H27 -> 0.01746869443 | J24: 1769 | K24: =+J24/J27 -> 0.0387386401 | L24: 2293 | M24: =+L24/L27 -> 0.03882163718 | N24: 0.0437 | O24: 0.0385 | P24: 0.0435 | Q24: 466437 | R24: 0.0434 | S24: 0.0421 | T24: 0.04275 | U24: 0.0385 | V24: 0.0435 | W24: 466437 | X24: 419793 | Y24: 46644
A25: North Shore | B25: 3693 | C25: =+B25/B27 -> 0.05859765482 | D25: 3.9 | E25: 0.05812220566 | H25: 11978 | I25: =+H25/H27 -> 0.05664321114 | J25: 2795 | K25: =+J25/J27 -> 0.06120661338 | L25: 3576 | M25: =+L25/L27 -> 0.06054346906 | N25: 0.059 | O25: 0.0519 | P25: 0.0587 | Q25: 629422 | R25: 0.0583 | S25: 0.057 | T25: 0.05765 | U25: 0.0519 | V25: 0.0587 | W25: 629422 | X25: 566480 | Y25: 62942
A26: South Shore | B26: 4822 | C26: =+B26/B27 -> 0.07651174968 | D26: 3.9 | E26: 0.05812220566 | H26: 12446 | I26: =+H26/H27 -> 0.0588563538 | J26: 3954 | K26: =+J26/J27 -> 0.08658710172 | L26: 4960 | M26: =+L26/L27 -> 0.08397528147 | N26: 0.0724 | O26: 0.0645 | P26: 0.0721 | Q26: 773106 | R26: 0.0725 | S26: 0.0708 | T26: 0.07165 | U26: 0.0645 | V26: 0.0721 | W26: 773106 | X26: 695795 | Y26: 77311
A27: TOTAL | B27: =SUM(B11:B26) -> 63023 | C27: =SUM(C11:C26) -> 1 | D27: =SUM(D11:D26) -> 67.1 | E27: =SUM(E11:E26) -> 1 | H27: =SUM(H11:H26) -> 211464 | I27: =SUM(I11:I26) -> 1 | J27: 45665 | K27: 1 | L27: 59065 | M27: 1 | N27: 1.0001 | O27: 0.8999 | P27: 1 | Q27: 10722688 | R27: 1 | S27: 1 | T27: =SUM(T11:T26) -> 1 | U27: =SUM(U11:U26) -> 0.8999 | V27: 1 | W27: 10722688 | X27: =SUM(X11:X26) -> 9650419 | Y27: =SUM(Y11:Y26) -> 1072269
W28: =SUM(W11:W26) -> 10722688 | X28: =SUM(X11:X26) -> 9650419 | Y28: =SUM(Y11:Y26) -> 1072269
B30: Calculation of FY 2026 Dislocated Worker Local Program Allocations with Factor Weights Approved June 2025.
B31: **Unadjusted formula shares (D) were adjusted to ensure that each area's formula share was at or above the area's 90% hold-harmless level (E). Totals may not add due to rounding.
B32: FY 2026 total allotment for workforce areas assumes Governor's Reserve for statewide activities at 15% for the period 7/1/25 - 6/30/26.
B33: FY 2026 Initial state program allotments published in Training and Employment Guidance Letter (TEGL) 11-24, May 20, 2025
B34: Prepared by: MassHire Department of Career Services | L34: 2025-06-03 | P34: Prepared by: MassHire Department of Career Services | V34: 2026-06-03

Sheet Awards FY26 Adult 060325
A1: ATTACHMENT - 5
A2: COMMONWEALTH OF MASSACHUSETTS
A3: FISCAL YEAR 2026 WIOA TITLE I FORMULA ALLOCATIONS FOR ADULT ACTIVITIES
A4: FUNDING AVAILABILITY
A6: MASSHIRE WORKFORCE AREAS | B6: Adjusted | C6: Fiscal Year 2026 Adult | F6: Funds Available as of July 1, 2025 DOL Notice of Award (NOA) | I6: Funds Available as of October 1, 2025 DOL Notice of Award (NOA)
B7: Formula | C7: Total | D7: Program 90% | E7: Admin 10%
B8: Share | C8: Allocation | D8: Amount | E8: Amount
B9: FY26 | C9: FY26 | D9: FY26 | E9: FY26 | F9: Total | G9: 90% Program | H9: 10% Admin | I9: Total | J9: 90% Program | K9: 10% Admin
A10: Berkshire County | B10: 0.022 | C10: 273390 | D10: 246051 | E10: 27339 | F10: =ROUND(B10*$F$26,0) -> 53206 | G10: =ROUND(F10*0.9,0) -> 47885 | H10: =F10-G10 -> 5321 | I10: =C10-F10 -> 220184 | J10: =D10-G10 -> 198166 | K10: =E10-H10 -> 22018
A11: Boston | B11: 0.1394 | C11: 1732295 | D11: 1559066 | E11: 173229 | F11: =ROUND(B11*$F$26,0) -> 337130 | G11: =ROUND(F11*0.9,0) -> 303417 | H11: =F11-G11 -> 33713 | I11: =C11-F11 -> 1395165 | J11: 1255649 | K11: 139516
A12: Bristol County | B12: 0.0581 | C12: 721997 | D12: 649797 | E12: 72200 | F12: =ROUND(B12*$F$26,0) -> 140511 | G12: 126460 | H12: 14051 | I12: 581486 | J12: 523337 | K12: 58149
A13: Brockton | B13: 0.0548 | C13: 680989 | D13: 612890 | E13: 68099 | F13: 132530 | G13: 119277 | H13: 13253 | I13: 548459 | J13: 493613 | K13: 54846
A14: Cape Cod & Islands | B14: 0.0581 | C14: 721997 | D14: 649797 | E14: 72200 | F14: 140511 | G14: 126460 | H14: 14051 | I14: 581486 | J14: 523337 | K14: 58149
A15: Central Mass | B15: 0.0736 | C15: 914612 | D15: 823151 | E15: 91461 | F15: 177997 | G15: 160197 | H15: 17800 | I15: 736615 | J15: 662954 | K15: 73661
A16: Franklin/Hampshire | B16: 0.0257 | C16: 319369 | D16: 287432 | E16: 31937 | F16: =ROUND(B16*$F$26,0) -> 62154 | G16: =ROUND(F16*0.9,0) -> 55939 | H16: 6215 | I16: 257215 | J16: 231493 | K16: 25722
A17: Greater Lowell | B17: 0.0297 | C17: 369076 | D17: 332168 | E17: 36908 | F17: 71828 | G17: 64645 | H17: 7183 | I17: 297248 | J17: 267523 | K17: 29725
A18: Gtr New Bedford | B18: 0.0413 | C18: 513227 | D18: 461904 | E18: 51323 | F18: 99881 | G18: 89893 | H18: 9988 | I18: 413346 | J18: 372011 | K18: 41335
A19: Hampden County | B19: 0.1246 | C19: 1548378 | D19: 1393540 | E19: 154838 | F19: =ROUND(B19*$F$26,0) -> 301337 | G19: 271203 | H19: 30134 | I19: =C19-F19 -> 1247041 | J19: 1122337 | K19: 124704
A20: Merrimack Valley | B20: 0.0842 | C20: 1046336 | D20: 941702 | E20: 104634 | F20: 203632 | G20: 183269 | H20: 20363 | I20: 842704 | J20: 758433 | K20: 84271
A21: Metro North | B21: 0.0847 | C21: 1052550 | D21: 947295 | E21: 105255 | F21: 204842 | G21: 184358 | H21: 20484 | I21: 847708 | J21: 762937 | K21: 84771
A22: Metro South/West | B22: 0.0585 | C22: 726968 | D22: 654271 | E22: 72697 | F22: 141479 | G22: 127331 | H22: 14148 | I22: 585489 | J22: 526940 | K22: 58549
A23: North Central | B23: 0.0345 | C23: 428725 | D23: 385853 | E23: 42872 | F23: 83436 | G23: 75092 | H23: 8344 | I23: 345289 | J23: 310761 | K23: 34528
A24: North Shore | B24: 0.0541 | C24: 672290 | D24: 605061 | E24: 67229 | F24: 130837 | G24: 117753 | H24: 13084 | I24: 541453 | J24: 487308 | K24: 54145
A25: South Shore | B25: 0.0567 | C25: 704600 | D25: 634140 | E25: 70460 | F25: 137125 | G25: 123413 | H25: 13712 | I25: 567475 | J25: 510727 | K25: 56748
A26: TOTAL | B26: 0.9999848429 | C26: 12426799 | D26: 11184118 | E26: 1242681 | F26: 2418436 | G26: =SUM(G10:G25) -> 2176592 | H26: =SUM(H10:H25) -> 241844 | I26: =SUM(I10:I25) -> 10008363 | J26: 9007526 | K26: 1000837
C27: =SUM(C10:C25) -> 12426799 | D27: =SUM(D10:D25) -> 11184118 | E27: 1242681 | F27: 2418436 | G27: 2176592 | H27: 241844 | I27: 10008363 | J27: 9007526 | K27: 1000837
A28: Source:
A29: 1. FY 2026 Initial state program allotments published in Training and Employment Guidance Letter (TEGL) 11-24, May 20, 2025.
A30: USDOL will issue allotments in two Notices of Award (NOA) one for July 1, 2025 (base allotment) and one for October 1, 2025 (advance allotment). Totals may not add due to rounding.
A31: Totals may not add due to rounding.
A33: Prepared by: MassHire Department of Career Services | J33: Date: | K33: 2025-06-03

Sheet Awards FY26 Youth 060323
A1: ATTACHMENT - 6
A2: COMMONWEALTH OF MASSACHUSETTS
A3: FISCAL YEAR 2026 WIOA TITLE I FORMULA ALLOCATIONS FOR YOUTH ACTIVITIES
A4: FUNDING AVAILABILITY
A6: MASSHIRE WORKFORCE AREAS | B6: Adjusted | C6: Fiscal Year 2026 Youth | F6: Funds Available as of April 1, 2025 DOL Notice of Award (NOA) | I6: Funds Available as of October 1, 2025 DOL Notice of Award (NOA)
B7: Formula | C7: Total | D7: Program 90% | E7: Admin 10%
B8: Share | C8: Allocation | D8: Amount | E8: Amount
B9: FY26 | C9: FY26 | D9: FY26 | E9: FY26 | F9: Total | G9: 90% Program | H9: 10% Admin | I9: Total | J9: 90% Program | K9: 10% Admin
A10: Berkshire County | B10: 0.0226 | C10: 324758 | D10: 292283 | E10: 32475 | F10: 324758 | G10: 292283 | H10: 32475
A11: Boston | B11: 0.1545191874 | C11: 2220412 | D11: 1998371 | E11: 222041 | F11: 2220412 | G11: 1998371 | H11: 222041
A12: Bristol County | B12: 0.0519 | C12: 745794 | D12: 671215 | E12: 74579 | F12: 745794 | G12: 671215 | H12: 74579
A13: Brockton | B13: 0.05585644042 | C13: 802647 | D13: 722382 | E13: 80265 | F13: 802647 | G13: 722382 | H13: 80265
A14: Cape Cod & Islands | B14: 0.05548473377 | C14: 797306 | D14: 717575 | E14: 79731 | F14: 797306 | G14: 717575 | H14: 79731
A15: Central Mass | B15: 0.07216394149 | C15: 1036983 | D15: 933285 | E15: 103698 | F15: 1036983 | G15: 933285 | H15: 103698
A16: Franklin/Hampshire | B16: 0.04247398656 | C16: 610344 | D16: 549310 | E16: 61034 | F16: 610344 | G16: 549310 | H16: 61034
A17: Greater Lowell | B17: 0.0278 | C17: 399481 | D17: 359533 | E17: 39948 | F17: 399481 | G17: 359533 | H17: 39948
A18: Gtr New Bedford | B18: 0.0401 | C18: 576230 | D18: 518607 | E18: 57623 | F18: 576230 | G18: 518607 | H18: 57623
A19: Hampden County | B19: 0.116416363 | C19: 1672882 | D19: 1505594 | E19: 167288 | F19: 1672882 | G19: 1505594 | H19: 167288
A20: Merrimack Valley | B20: 0.08006465274 | C20: 1150515 | D20: 1035464 | E20: 115051 | F20: 1150515 | G20: 1035464 | H20: 115051
A21: Metro North | B21: 0.08725346218 | C21: 1253817 | D21: 1128435 | E21: 125382 | F21: 1253817 | G21: 1128435 | H21: 125382
A22: Metro South/West | B22: 0.0645 | C22: 926853 | D22: 834168 | E22: 92685 | F22: 926853 | G22: 834168 | H22: 92685
A23: North Central | B23: 0.0293 | C23: 421036 | D23: 378932 | E23: 42104 | F23: 421036 | G23: 378932 | H23: 42104
A24: North Shore | B24: 0.04906723243 | C24: 705087 | D24: 634578 | E24: 70509 | F24: 705087 | G24: 634578 | H24: 70509
A25: South Shore | B25: 0.0505 | C25: 725676 | D25: 653108 | E25: 72568 | F25: 725676 | G25: 653108 | H25: 72568
A26: TOTAL | B26: 1 | C26: =+SUM(C10:C25) -> 14369821 | D26: 12932840 | E26: 1436981 | F26: =+SUM(F10:F25) -> 14369821 | G26: =+SUM(G10:G25) -> 12932840 | H26: 1436981
A28: Source:
A30: 1. FY 2026 Initial state program allotments published in Training and Employment Guidance Letter (TEGL) 11-24, May 20, 2025.
A31: USDOL will issue the allotment for yout in one Notice of Award (NOA) for April 1, 2025. Totals may not add due to rounding.
A32: Totals may not add due to rounding.
A34: Prepared by: MassHire Department of Career Services | J34: Date: | K34: 2025-06-03

Sheet Awards FY26 DWrk 0603623
A1: ATTACHMENT - 7
A2: COMMONWEALTH OF MASSACHUSETTS
A3: FISCAL YEAR 2026 WIOA TITLE I FORMULA ALLOCATIONS FOR DISCLOCATED WORKER PROGRAMS
A4: FUNDING AVAILABILITY
A6: MASSHIRE WORKFORCE AREAS | B6: Adjusted | C6: Fiscal Year 2026 | F6: Funds Available as of July 1, 2025 DOL Notice of Award (NOA) | I6: Funds Available as of October 1, 2025 DOL Notice of Award (NOA)
B7: Formula | C7: Total | D7: Program 90% | E7: Admin 10%
B8: Share | C8: Allocation | D8: Amount | E8: Amount
B9: FY26 | C9: FY26 | D9: FY26 | E9: FY26 | F9: Total | G9: 90% Program | H9: 10% Admin | I9: Total | J9: 90% Program | K9: 10% Admin
A10: Berkshire County | B10: 0.0279 | C10: 299163 | D10: 269247 | E10: 29916 | F10: =ROUND(B10*$F$26,0) -> 63856 | G10: =ROUND(F10*0.9,0) -> 57470 | H10: =F10-G10 -> 6386 | I10: =C10-F10 -> 235307 | J10: =D10-G10 -> 211777 | K10: =E10-H10 -> 23530
A11: Boston | B11: 0.1001 | C11: 1073340 | D11: 966006 | E11: 107334 | F11: =ROUND(B11*$F$26,0) -> 229104 | G11: 206194 | H11: =F11-G11 -> 22910 | I11: =C11-F11 -> 844236 | J11: 759812 | K11: 84424
A12: Bristol County | B12: 0.0653 | C12: 700192 | D12: 630173 | E12: 70019 | F12: 149456 | G12: 134510 | H12: 14946 | I12: 550736 | J12: 495663 | K12: 55073
A13: Brockton | B13: 0.0461 | C13: 494316 | D13: 444884 | E13: 49432 | F13: 105512 | G13: 94961 | H13: 10551 | I13: 388804 | J13: 349923 | K13: 38881
A14: Cape Cod & Islands | B14: 0.0525 | C14: 562941 | D14: 506647 | E14: 56294 | F14: 120160 | G14: 108144 | H14: 12016 | I14: 442781 | J14: 398503 | K14: 44278
A15: Central Mass | B15: 0.0756 | C15: 810635 | D15: 729572 | E15: 81063 | F15: 173030 | G15: 155727 | H15: 17303 | I15: 637605 | J15: 573845 | K15: 63760
A16: Franklin/Hampshire | B16: 0.0309 | C16: 331331 | D16: 298198 | E16: 33133 | F16: 70723 | G16: 63651 | H16: 7072 | I16: 260608 | J16: 234547 | K16: 26061
A17: Greater Lowell | B17: 0.0501 | C17: 537207 | D17: 483486 | E17: 53721 | F17: 114667 | G17: 103200 | H17: 11467 | I17: 422540 | J17: 380286 | K17: 42254
A18: Gtr New Bedford | B18: 0.0466 | C18: 499677 | D18: 449709 | E18: 49968 | F18: 106656 | G18: 95990 | H18: 10666 | I18: 393021 | J18: 353719 | K18: 39302
A19: Hampden County | B19: 0.0698 | C19: 748444 | D19: 673600 | E19: 74844 | F19: 159755 | G19: 143780 | H19: 15975 | I19: 588689 | J19: 529820 | K19: 58869
A20: Merrimack Valley | B20: 0.059 | C20: 632639 | D20: 569375 | E20: 63264 | F20: 135037 | G20: 121533 | H20: 13504 | I20: 497602 | J20: 447842 | K20: 49760
A21: Metro North | B21: 0.0973 | C21: 1043318 | D21: 938986 | E21: 104332 | F21: 222696 | G21: 200426 | H21: 22270 | I21: 820622 | J21: 738560 | K21: 82062
A22: Metro South/West | B22: 0.1045 | C22: 1120520 | D22: 1008468 | E22: 112052 | F22: 239175 | G22: 215258 | H22: 23917 | I22: 881345 | J22: 793210 | K22: 88135
A23: North Central | B23: 0.0435 | C23: 466437 | D23: 419793 | E23: 46644 | F23: 99561 | G23: =ROUND(F23*0.9,0) -> 89605 | H23: =F23-G23 -> 9956 | I23: 366876 | J23: 330188 | K23: 36688
A24: North Shore | B24: 0.0587 | C24: 629422 | D24: 566480 | E24: 62942 | F24: 134350 | G24: =ROUND(F24*0.9,0) -> 120915 | H24: 13435 | I24: 495072 | J24: 445565 | K24: 49507
A25: South Shore | B25: 0.0721 | C25: 773106 | D25: 695795 | E25: 77311 | F25: 165019 | G25: =ROUND(F25*0.9,0) -> 148517 | H25: 16502 | I25: 608087 | J25: 547278 | K25: 60809
A26: TOTAL | B26: 1 | C26: 10722688 | D26: 9650419 | E26: 1072269 | F26: 2288756 | G26: =SUM(G10:G25) -> 2059881 | H26: =SUM(H10:H25) -> 228876 | I26: =C26-F26 -> 8433932 | J26: =SUM(J10:J25) -> 7590538 | K26: =SUM(K10:K25) -> 843393
A27: Source:
A28: 1. FY 2026 Initial state program allotments published in Training and Employment Guidance Letter (TEGL) 11-24, May 20, 2025.
A29: USDOL will issue allotments in two Notices of Award (NOA) one for July 1, 2025 (base allotment) and one for October 1, 2025 (advance allotment). Totals may not add due to rounding.
A31: Prepared by: MassHire Department of Career Services | J31: Date: | K31: 2025-06-03

Sheet Adult HH (hidden)
A1: 2007-04-15
A2: FY2008 WIA Title I Adult HH Calculation
D4: Hold
B5: Straight | C5: 90% Hold | D5: Harmless | E5: Formula | F5: Adjusted | G5: Adjusted
A6: Areas | B6: Formula | C6: Harmless | D6: 0.9 | E6: If> Hold- | F6: Formula | G6: FY2008 Formula
B7: Share | C7: Share | D7: If > Formula | E7: Harmless | F7: F x (100-D/Total F) | G7: Share
A8: Berkshire County | B8: =#REF! ->  | C8: =#REF! ->  | D8: =C8 ->  | F8: =+E8*(76.84/81.64) -> 0 | G8: =D8 -> 
A9: Boston | B9: =#REF! ->  | C9: =#REF! ->  | E9: =B9 ->  | F9: =+E9*(76.84/81.64) ->  | G9: =F9 -> 
A10: Bristol County | B10: =#REF! ->  | C10: =#REF! ->  | E10: =B10 ->  | G10: =F10 -> 
A11: Brockton | B11: =#REF! ->  | C11: =#REF! ->  | E11: =B11 ->  | G11: =F11 -> 
A12: Cape Cod & Islands | B12: =#REF! ->  | C12: =#REF! ->  | D12: =C12 ->  | F12: 0 | G12: =D12 -> 
A13: Central Mass | B13: =#REF! ->  | C13: =#REF! ->  | E13: =B13 ->  | G13: =F13 -> 
A14: Franklin/Hampshire | B14: =#REF! ->  | C14: =#REF! ->  | E14: =B14 ->  | G14: =F14 -> 
A15: Greater Lowell | B15: =#REF! ->  | C15: =#REF! ->  | E15: =B15 ->  | G15: =F15 -> 
A16: Gtr New Bedford | B16: =#REF! ->  | C16: =#REF! ->  | D16: =C16 ->  | F16: 0 | G16: =D16 -> 
A17: Hampden County | B17: =#REF! ->  | C17: =#REF! ->  | E17: =B17 ->  | G17: =F17 -> 
A18: Lower Merrimack | B18: =#REF! ->  | C18: =#REF! ->  | D18: =C18 ->  | F18: 0 | G18: =D18 -> 
A19: Metro North | B19: =#REF! ->  | C19: =#REF! ->  | E19: =B19 ->  | G19: =F19 -> 
A20: Metro South/West | B20: =#REF! ->  | C20: =#REF! ->  | E20: =B20 ->  | G20: =F20 -> 
A21: North Central | B21: =#REF! ->  | C21: =#REF! ->  | E21: =B21 ->  | G21: =F21 -> 
A22: North Shore | B22: =#REF! ->  | C22: =#REF! ->  | E22: =B22 ->  | G22: =F22 -> 
A23: South Coastal | B23: =#REF! ->  | C23: =#REF! ->  | E23: =B23 ->  | G23: =F23 -> 
A24: TOTAL | B24: 1 | C24: 0.9 | D24: =SUM(D8:D23) ->  | E24: =SUM(E8:E23) ->  | F24: =SUM(F8:F23) ->  | G24: =SUM(G8:G23) -> 
F26: 1
F27: =D24 -> 
F28: =+F26-F27 -> 

Sheet Youth HH (hidden)
A1: 2007-04-15
A2: FY2008 WIA Title I Youth HH Calculation
B3: b | C3: c | D3: d | E3: e | F3: f | G3: g
B4: v | D4: Hold | G4: not rounded
B5: Straight | C5: 90% Hold | D5: Harmless | E5: Formula | F5: Adjusted | G5: Final Adjusted
A6: Areas | B6: Formula | C6: Harmless | D6: 0.9 | E6: If> Hold- | F6: Formula | G6: FY2008 Formula
B7: Share | C7: Share | D7: If > Formula | E7: Harmless | F7: F x (100-E/Total F) | G7: Share
A8: Berkshire County | B8: =#REF! ->  | C8: =#REF! ->  | D8: =C8 ->  | F8: =+E8*(74.12/78.4) -> 0 | G8: =(+D8) -> 
A9: Boston | B9: =#REF! ->  | C9: =#REF! ->  | E9: =B9 ->  | F9: =+E9*(74.12/78.4) ->  | G9: =F9 -> 
A10: Bristol County | B10: =#REF! ->  | C10: =#REF! ->  | E10: =B10 ->  | G10: =F10 -> 
A11: Brockton | B11: =#REF! ->  | C11: =#REF! ->  | E11: =B11 ->  | G11: =+F11 -> 
A12: Cape Cod & Islands | B12: =#REF! ->  | C12: =#REF! ->  | D12: =C12 ->  | F12: 0 | G12: =D12 -> 
A13: Central Mass | B13: =#REF! ->  | C13: =#REF! ->  | E13: 0.0847 | F13: 0.08007607143 | G13: =F13 -> 0.08007607143
A14: Franklin/Hampshire | B14: =#REF! ->  | C14: =#REF! ->  | E14: =B14 ->  | G14: =+F14 -> 
A15: Greater Lowell | B15: =#REF! ->  | C15: =#REF! ->  | D15: 0.0454 | F15: 0 | G15: =D15 -> 0.0454
A16: Gtr New Bedford | B16: =#REF! ->  | C16: =#REF! ->  | D16: =C16 ->  | F16: 0 | G16: =+D16 -> 
A17: Hampden County | B17: =#REF! ->  | C17: =#REF! ->  | E17: =B17 ->  | G17: =F17 -> 
A18: Lower Merrimack | B18: =#REF! ->  | C18: =#REF! ->  | D18: =C18 ->  | F18: 0 | G18: =+D18 -> 
A19: Metro North | B19: =#REF! ->  | C19: =#REF! ->  | E19: =B19 ->  | G19: =+F19 -> 
A20: Metro South/West | B20: =#REF! ->  | C20: =#REF! ->  | E20: 0.0375 | F20: 0.03545280612 | G20: =F20 -> 0.03545280612
A21: North Central | B21: =#REF! ->  | C21: =#REF! ->  | E21: =B21 ->  | G21: =+F21 -> 
A22: North Shore | B22: =#REF! ->  | C22: =#REF! ->  | E22: =B22 ->  | G22: =+F22 -> 
A23: South Coastal | B23: =#REF! ->  | C23: =#REF! ->  | E23: 0.0506 | F23: 0.04783765306 | G23: =F23 -> 0.04783765306
A24: TOTAL | B24: 1 | C24: 0.9 | D24: =SUM(D8:D23) ->  | E24: =SUM(E8:E23) ->  | F24: =SUM(F8:F23) ->  | G24: =SUM(G8:G23) -> 
F26: 1
F27: =+D24 -> 
F28: =+F26-F27 -> 
